[Event "CZE-ch U10 2020"]
[Site "Kouty nad Desnou"]
[Date "2020.03.09"]
[Round "4.2"]
[White "Krautschneider, Daniel Jan"]
[Black "Bouska, Jiri"]
[Result "1-0"]
[ECO "B34"]
[WhiteElo "1236"]
[BlackElo "1643"]
[Annotator "NA"]
[PlyCount "55"]
[EventDate "2020.03.07"]
[EventCountry "CZE"]
[SourceTitle "playchess.com"]
[Source "ChessBase"]
[SourceQuality "1"]
[TimeControl "5400+30"]

1. e4 {[%emt 0:00:00]} c5 {[%emt 0:00:00]} 2. Nf3 {[%emt 0:00:00]} Nc6 {[%emt 0:00:00]} 3. d4 {[%emt 0:00:06]} cxd4 {[%emt 0:00:00]} 4. Nxd4 {[%emt 0:00:09]} g6 {[%emt 0:00:00]} 5. Nc3 {[%emt 0:00:17]} Bg7 {[%emt 0:00:06]} 6. Be3 {[%emt 0:00:07]} Nf6 {[%emt 0:00:11]} 7. f3 {[%emt 0:00:10]} O-O {[%emt 0:00:07]} 8. Bc4 {[%emt 0:00:14]} Qb6 {[%emt 0:00:08]} 9. Qd2 {[%emt 0:00:59]} Qb4 {[%emt 0:00:46]} 10. Bb3 {[%emt 0:02:17]} Nxd4 {[%emt 0:01:56]} 11. Qxd4 {[%emt 0:03:01]} Qxd4 {[%emt 0:00:51]} 12. Bxd4 {[%emt 0:01:53]} d6 {[%emt 0:00:38]} 13. O-O-O {[%emt 0:01:43]} Be6 {[%emt 0:00:17]} 14. Bxf6 {[%emt 0:01:31]} Bxf6 {[%emt 0:00:26]} 15. Nd5 {[%emt 0:01:33]} Bxd5 {[%emt 0:00:14]} 16. Bxd5 {[%emt 0:00:12]} a5 {[%emt 0:00:29]} 17. h4 {[%emt 0:00:09]} a4 {[%emt 0:00:46]} 18. g4 {[%emt 0:00:44]} Ra6 {[%emt 0:00:57]} 19. g5 {[%emt 0:00:30]} Bg7 {[%emt 0:00:28]} 20. h5 {[%emt 0:00:17]} Rb6 {[%emt 0:00:10]} 21. b3 {[%emt 0:03:31]} axb3 {[%emt 0:05:02]} 22. Bxb3 {[%emt 0:00:14]} Ra8 {[%emt 0:01:57]} 23. f4 {[%emt 0:06:38]} e6 {[%emt 0:01:45]} 24. hxg6 {[%emt 0:08:11]} hxg6 {[%emt 0:00:14]} 25. Rhf1 {[%emt 0:00:34]} Rba6 {[%emt 0:00:21]} 26. f5 {[%emt 0:01:54]} Bc3 {[%emt 0:10:12]} 27. Rf3 {[%emt 0:01:36]} Be5 {[%emt 0:00:55]} 28. fxe6 {[%emt 0:02:23]} 1-0

[Event "CZE-ch U10 2020"]
[Site "Kouty nad Desnou"]
[Date "2020.03.09"]
[Round "4.4"]
[White "Stary, Vojtech"]
[Black "Svadlenka, Michal"]
[Result "1/2-1/2"]
[ECO "B76"]
[WhiteElo "1559"]
[BlackElo "1309"]
[Annotator "NA"]
[PlyCount "91"]
[EventDate "2020.03.07"]
[EventCountry "CZE"]
[SourceTitle "playchess.com"]
[Source "ChessBase"]
[SourceQuality "1"]
[TimeControl "5400+30"]

1. e4 {[%emt 0:00:00]} c5 {[%emt 0:00:00]} 2. Nf3 {[%emt 0:00:00]} d6 {[%emt 0:00:00]} 3. d4 {[%emt 0:00:00]} cxd4 {[%emt 0:00:04]} 4. Nxd4 {[%emt 0:00:00]} Nf6 {[%emt 0:00:17]} 5. Nc3 {[%emt 0:00:00]} g6 {[%emt 0:00:11]} 6. Be3 {[%emt 0:00:00]} Bg7 {[%emt 0:00:13]} 7. f3 {[%emt 0:00:07]} O-O {[%emt 0:00:16]} 8. Qd2 {[%emt 0:00:40]} Nc6 {[%emt 0:00:33]} 9. g4 {[%emt 0:00:52]} Bd7 {[%emt 0:00:29]} 10. h4 {[%emt 0:01:02]} h5 {[%emt 0:01:06]} 11. g5 {[%emt 0:02:27]} Ne8 {[%emt 0:00:32]} 12. O-O-O {[%emt 0:01:17]} Rb8 {[%emt 0:02:52]} 13. f4 {[%emt 0:03:30]} e6 {[%emt 0:02:23]} 14. Bh3 {[%emt 0:10:07]} e5 {[%emt 0:04:34]} 15. Nde2 Bxh3 {[%emt 0:07:21]} 16. Rxh3 {[%emt 0:11:47]} exf4 {[%emt 0:03:30]} 17. Bxf4 {[%emt 0:04:52]} Ne5 {[%emt 0:10:39]} 18. Bxe5 {[%emt 0:04:16]} Bxe5 {[%emt 0:00:30]} 19. Nd5 {[%emt 0:04:11]} Nc7 {[%emt 0:05:59]} 20. Nec3 {[%emt 0:02:34]} Nxd5 {[%emt 0:02:33]} 21. Nxd5 {[%emt 0:01:01]} Qd7 {[%emt 0:01:12]} 22. Rhh1 {[%emt 0:08:12]} Qa4 {[%emt 0:02:24]} 23. Kb1 {[%emt 0:07:55]} Qxe4 {[%emt 0:02:56]} 24. Nf6+ {[%emt 0:06:02]} Bxf6 {[%emt 0:00:22]} 25. gxf6 {[%emt 0:00:25]} Kh7 {[%emt 0:01:47]} 26. Qxd6 {[%emt 0:02:23]} Rbd8 {[%emt 0:01:46]} 27. Qe7 {[%emt 0:01:47]} Rxd1+ {[%emt 0:00:53]} 28. Rxd1 {[%emt 0:00:42]} Qxe7 {[%emt 0:00:05]} 29. fxe7 {[%emt 0:00:16]} Re8 {[%emt 0:00:27]} 30. Rd7 {[%emt 0:00:28]} Kg7 {[%emt 0:01:15]} 31. Rxb7 {[%emt 0:00:16]} a5 {[%emt 0:00:40]} 32. c3 {[%emt 0:00:43]} Kf6 {[%emt 0:00:24]} 33. Kc2 {[%emt 0:03:00]} Rxe7 {[%emt 0:00:21]} 34. Rxe7 {[%emt 0:00:39]} Kxe7 {[%emt 0:00:10]} 35. b4 {[%emt 0:01:22]} axb4 {[%emt 0:00:59]} 36. cxb4 {[%emt 0:00:19]} Kd6 {[%emt 0:00:05]} 37. Kd3 {[%emt 0:00:26]} f6 {[%emt 0:00:54]} 38. Ke4 {[%emt 0:00:43]} g5 {[%emt 0:01:03]} 39. hxg5 {[%emt 0:00:25]} fxg5 {[%emt 0:00:27]} 40. Kf3 {[%emt 0:00:46]} Kc6 {[%emt 0:00:43]} 41. a4 {[%emt 0:00:10]} Kb6 {[%emt 0:00:28]} 42. a5+ {[%emt 0:00:14]} Ka6 {[%emt 0:00:40]} 43. Kg3 {[%emt 0:00:06]} h4+ {[%emt 0:00:27]} 44. Kh3 {[%emt 0:00:09]} Kb5 {[%emt 0:00:12]} 45. Kg4 {[%emt 0:00:04]} Ka6 {[%emt 0:00:18]} 46. Kh3 {[%emt 0:00:05]} 1/2-1/2

[Event "CZE-ch U10 2020"]
[Site "Kouty nad Desnou"]
[Date "2020.03.09"]
[Round "4.5"]
[White "Chon, Jeremy"]
[Black "Bulawa, Adam"]
[Result "1-0"]
[ECO "D04"]
[WhiteElo "1449"]
[BlackElo "1014"]
[Annotator "NA"]
[PlyCount "125"]
[EventDate "2020.03.07"]
[EventCountry "CZE"]
[SourceTitle "playchess.com"]
[Source "ChessBase"]
[SourceQuality "1"]
[TimeControl "5400+30"]

1. d4 {[%emt 0:00:00]} d5 {[%emt 0:00:00]} 2. Nf3 {[%emt 0:00:00]} Nf6 {[%emt 0:00:00]} 3. e3 {[%emt 0:00:00]} Bg4 {[%emt 0:00:07]} 4. Nbd2 {[%emt 0:00:00]} e6 {[%emt 0:00:16]} 5. h3 {[%emt 0:00:10]} Bh5 {[%emt 0:00:22]} 6. Be2 {[%emt 0:00:47]} Bd6 {[%emt 0:01:05]} 7. O-O {[%emt 0:00:38]} Nbd7 {[%emt 0:00:28]} 8. c4 {[%emt 0:03:41]} c6 {[%emt 0:00:10]} 9. b3 {[%emt 0:01:59]} O-O {[%emt 0:00:25]} 10. Bb2 {[%emt 0:00:28]} Qc7 {[%emt 0:00:12]} 11. c5 {[%emt 0:04:13]} Be7 {[%emt 0:00:16]} 12. Rc1 {[%emt 0:03:27]} h6 {[%emt 0:03:31]} 13. Qc2 {[%emt 0:07:06]} Bg6 {[%emt 0:04:35]} 14. Bd3 {[%emt 0:03:42]} Bxd3 {[%emt 0:00:36]} 15. Qxd3 {[%emt 0:00:06]} b6 16. b4 {[%emt 0:07:12]} a5 {[%emt 0:06:28]} 17. a3 {[%emt 0:06:10]} axb4 {[%emt 0:01:54]} 18. axb4 {[%emt 0:00:27]} Rfb8 {[%emt 0:10:06]} 19. Ra1 {[%emt 0:04:26]} Kh8 {[%emt 0:06:30]} 20. Rxa8 {[%emt 0:02:40]} Rxa8 {[%emt 0:00:16]} 21. Ra1 {[%emt 0:00:29]} Rxa1+ {[%emt 0:01:46]} 22. Bxa1 {[%emt 0:00:43]} Kg8 {[%emt 0:02:01]} 23. Qa3 {[%emt 0:03:36]} bxc5 {[%emt 0:04:08]} 24. bxc5 {[%emt 0:00:17]} Qb7 {[%emt 0:04:57]} 25. Qa4 {[%emt 0:07:13]} g6 {[%emt 0:06:17]} 26. Nb3 {[%emt 0:09:08]} Bd8 {[%emt 0:00:50]} 27. Ne1 {[%emt 0:03:49]} Kg7 {[%emt 0:05:07]} 28. Nc2 {[%emt 0:01:26]} Nb8 {[%emt 0:04:53]} 29. Nb4 {[%emt 0:00:48]} h5 {[%emt 0:02:26]} 30. Bc3 {[%emt 0:06:04]} Ne4 {[%emt 0:01:27]} 31. Be1 {[%emt 0:00:11]} Nf6 {[%emt 0:01:23]} 32. Kf1 {[%emt 0:02:03]} Bc7 {[%emt 0:02:35]} 33. Ke2 {[%emt 0:00:52]} Ne4 {[%emt 0:00:22]} 34. Kd1 {[%emt 0:01:27]} Kh7 {[%emt 0:01:37]} 35. Kc2 {[%emt 0:01:05]} Nf6 {[%emt 0:01:17]} 36. Kb2 {[%emt 0:03:07]} Kg7 {[%emt 0:01:06]} 37. Nd3 {[%emt 0:01:49]} Na6 {[%emt 0:01:55]} 38. Ba5 {[%emt 0:03:08]} Bxa5 {[%emt 0:00:51]} 39. Qxa5 {[%emt 0:00:10]} Nd7 {[%emt 0:02:12]} 40. Ka3 {[%emt 0:01:13]} Nc7 {[%emt 0:02:58]} 41. Nb4 {[%emt 0:02:24]} Nb5+ {[%emt 0:00:46]} 42. Kb2 {[%emt 0:00:32]} Nf6 {[%emt 0:01:48]} 43. Qa6 {[%emt 0:00:35]} Qxa6 {[%emt 0:00:59]} 44. Nxa6 Nd7 {[%emt 0:01:40]} 45. Na5 {[%emt 0:00:43]} Na7 {[%emt 0:00:24]} 46. Nb4 {[%emt 0:00:44]} Nb8 {[%emt 0:00:20]} 47. g4 {[%emt 0:00:46]} hxg4 {[%emt 0:00:12]} 48. hxg4 {[%emt 0:00:05]} f5 {[%emt 0:00:14]} 49. g5 {[%emt 0:00:09]} Kf7 {[%emt 0:00:35]} 50. f4 {[%emt 0:00:21]} Ke7 {[%emt 0:00:13]} 51. Nd3 {[%emt 0:00:22]} Nd7 {[%emt 0:01:02]} 52. Kb3 {[%emt 0:00:49]} Kf7 {[%emt 0:00:20]} 53. Kb4 {[%emt 0:00:37]} Ke7 {[%emt 0:00:27]} 54. Nb7 {[%emt 0:01:01]} Nb5 {[%emt 0:02:11]} 55. Ka5 {[%emt 0:01:00]} Nc7 {[%emt 0:02:20]} 56. Nb4 {[%emt 0:01:30]} Nb8 {[%emt 0:00:12]} 57. Kb6 {[%emt 0:00:44]} Kd7 {[%emt 0:00:34]} 58. Na5 {[%emt 0:00:47]} Nb5 {[%emt 0:01:22]} 59. Naxc6 {[%emt 0:00:38]} Nxc6 {[%emt 0:00:19]} 60. Nxc6 {[%emt 0:00:12]} Nc3 {[%emt 0:00:30]} 61. Nb4 {[%emt 0:01:19]} Nd1 {[%emt 0:00:15]} 62. Nc2 {[%emt 0:00:22]} Nf2 {[%emt 0:00:32]} 63. Kb7 {[%emt 0:00:24]} 1-0

[Event "CZE-ch U10 2020"]
[Site "Kouty nad Desnou"]
[Date "2020.03.09"]
[Round "4.6"]
[White "Vana, Jan"]
[Black "Svadlenka, Dominik"]
[Result "1-0"]
[ECO "D63"]
[WhiteElo "1268"]
[BlackElo "1410"]
[Annotator "NA"]
[PlyCount "57"]
[EventDate "2020.03.07"]
[EventCountry "CZE"]
[SourceTitle "playchess.com"]
[Source "ChessBase"]
[SourceQuality "1"]
[TimeControl "5400+30"]

1. d4 {[%emt 0:00:00]} d5 {[%emt 0:00:00]} 2. c4 {[%emt 0:00:00]} e6 {[%emt 0:00:00]} 3. Nc3 {[%emt 0:00:16]} Nf6 4. cxd5 exd5 {[%emt 0:00:14]} 5. Bg5 {[%emt 0:00:42]} Be7 {[%emt 0:00:12]} 6. Nf3 {[%emt 0:00:44]} O-O {[%emt 0:00:23]} 7. e3 {[%emt 0:00:32]} Nbd7 {[%emt 0:00:19]} 8. Bd3 {[%emt 0:00:24]} b6 {[%emt 0:00:36]} 9. Rc1 {[%emt 0:00:32]} Bb7 {[%emt 0:00:49]} 10. O-O {[%emt 0:00:21]} c5 {[%emt 0:01:07]} 11. Bb1 {[%emt 0:00:56]} a6 {[%emt 0:01:33]} 12. Qc2 {[%emt 0:03:09]} c4 {[%emt 0:01:14]} 13. Ne5 {[%emt 0:03:09]} g6 {[%emt 0:01:51]} 14. Bh6 {[%emt 0:01:27]} Re8 {[%emt 0:01:41]} 15. f4 {[%emt 0:01:25]} b5 {[%emt 0:00:49]} 16. f5 {[%emt 0:01:03]} b4 {[%emt 0:01:10]} 17. Nxf7 Kxf7 18. fxg6+ {[%emt 0:05:29]} Kg8 {[%emt 0:06:18]} 19. Ne2 {[%emt 0:02:51]} Ne4 {[%emt 0:02:18]} 20. Ng3 {[%emt 0:03:08]} Ndf6 {[%emt 0:01:50]} 21. Qe2 {[%emt 0:01:40]} hxg6 {[%emt 0:04:23]} 22. Nxe4 {[%emt 0:01:44]} dxe4 {[%emt 0:01:11]} 23. g4 {[%emt 0:01:32]} Kh7 {[%emt 0:02:42]} 24. g5 {[%emt 0:01:20]} Nd5 {[%emt 0:00:59]} 25. Bxe4 {[%emt 0:01:10]} Bxg5 {[%emt 0:00:40]} 26. Qh5 {[%emt 0:03:10]} Qb6 {[%emt 0:09:10]} 27. Bxg5+ {[%emt 0:01:18]} Kg8 {[%emt 0:05:24]} 28. Bxg6 {[%emt 0:01:12]} Qc7 {[%emt 0:05:11]} 29. Bf7+ {[%emt 0:01:41]} 1-0

[Event "CZE-ch U10 2020"]
[Site "Kouty nad Desnou"]
[Date "2020.03.09"]
[Round "4.7"]
[White "Melnikov, Ivan"]
[Black "Roubal, Matyas"]
[Result "0-1"]
[ECO "C55"]
[WhiteElo "1253"]
[BlackElo "1380"]
[Annotator "NA"]
[PlyCount "66"]
[EventDate "2020.03.07"]
[EventCountry "CZE"]
[SourceTitle "playchess.com"]
[Source "ChessBase"]
[SourceQuality "1"]
[TimeControl "5400+30"]

1. e4 {[%emt 0:00:00]} e5 {[%emt 0:00:00]} 2. Nf3 {[%emt 0:00:05]} Nc6 {[%emt 0:00:00]} 3. d4 {[%emt 0:00:26]} exd4 {[%emt 0:00:01]} 4. Bc4 {[%emt 0:00:30]} Nf6 {[%emt 0:00:07]} 5. e5 {[%emt 0:00:29]} d5 {[%emt 0:00:10]} 6. Bb5 {[%emt 0:00:24]} Ne4 {[%emt 0:00:06]} 7. Nxd4 {[%emt 0:01:15]} Bd7 {[%emt 0:00:06]} 8. O-O {[%emt 0:00:33]} Nxd4 {[%emt 0:05:34]} 9. Bxd7+ {[%emt 0:00:14]} Qxd7 {[%emt 0:00:06]} 10. Qxd4 {[%emt 0:00:10]} Bc5 {[%emt 0:01:28]} 11. Qd1 {[%emt 0:01:17]} O-O-O {[%emt 0:02:29]} 12. b4 {[%emt 0:05:29]} Bxb4 {[%emt 0:04:17]} 13. Ba3 Bxa3 {[%emt 0:01:25]} 14. Nxa3 {[%emt 0:01:01]} Qe7 {[%emt 0:01:55]} 15. Nb5 {[%emt 0:04:25]} Qc5 {[%emt 0:03:24]} 16. Rb1 {[%emt 0:06:21]} a6 {[%emt 0:00:17]} 17. Nd4 {[%emt 0:03:09]} Nc3 {[%emt 0:00:22]} 18. Qg4+ {[%emt 0:00:06]} Kb8 {[%emt 0:02:24]} 19. Rb3 {[%emt 0:03:14]} Qxd4 {[%emt 0:01:30]} 20. Qh3 {[%emt 0:10:48]} Ne2+ {[%emt 0:01:44]} 21. Kh1 {[%emt 0:00:27]} Qc4 {[%emt 0:03:01]} 22. Rfb1 {[%emt 0:01:11]} b6 {[%emt 0:01:55]} 23. Qe3 {[%emt 0:02:40]} d4 {[%emt 0:06:15]} 24. Qf3 {[%emt 0:00:52]} b5 {[%emt 0:02:45]} 25. a4 {[%emt 0:00:50]} Nc3 {[%emt 0:01:33]} 26. axb5 Nxb1 {[%emt 0:17:08]} 27. bxa6+ {[%emt 0:07:15]} Kc8 {[%emt 0:00:03]} 28. Rb8+ {[%emt 0:02:54]} Kd7 {[%emt 0:00:10]} 29. Rxb1 Rb8 {[%emt 0:02:37]} 30. Rd1 {[%emt 0:01:58]} Rhd8 {[%emt 0:03:49]} 31. h3 {[%emt 0:02:57]} Ke7 {[%emt 0:00:34]} 32. a7 {[%emt 0:03:01]} Ra8 {[%emt 0:00:21]} 33. Qa3+ {[%emt 0:00:54]} c5 {[%emt 0:00:40]} 0-1

[Event "CZE-ch U10 2020"]
[Site "Kouty nad Desnou"]
[Date "2020.03.09"]
[Round "4.8"]
[White "Srba, Daniel"]
[Black "Stefaniv, Vladyslav"]
[Result "1-0"]
[ECO "B40"]
[WhiteElo "1145"]
[BlackElo "1265"]
[Annotator "NA"]
[PlyCount "75"]
[EventDate "2020.03.07"]
[EventCountry "CZE"]
[SourceTitle "playchess.com"]
[Source "ChessBase"]
[SourceQuality "1"]
[TimeControl "5400+30"]

1. e4 {[%emt 0:00:00]} c5 {[%emt 0:00:00]} 2. Nf3 {[%emt 0:00:25]} e6 {[%emt 0:00:00]} 3. d4 {[%emt 0:00:10]} cxd4 {[%emt 0:00:16]} 4. Nxd4 {[%emt 0:00:24]} Nf6 {[%emt 0:00:17]} 5. Nc3 {[%emt 0:01:10]} Nc6 {[%emt 0:00:29]} 6. Bb5 {[%emt 0:02:30]} Bb4 {[%emt 0:04:12]} 7. f3 {[%emt 0:04:17]} O-O {[%emt 0:05:28]} 8. Bg5 {[%emt 0:01:09]} Bxc3+ {[%emt 0:01:26]} 9. bxc3 {[%emt 0:00:13]} Qa5 {[%emt 0:12:59]} 10. Nxc6 {[%emt 0:07:24]} Qxc3+ {[%emt 0:11:24]} 11. Bd2 {[%emt 0:02:41]} Qc5 {[%emt 0:00:48]} 12. Rb1 {[%emt 0:05:48]} bxc6 13. Bb4 {[%emt 0:01:01]} Qe3+ {[%emt 0:10:23]} 14. Qe2 {[%emt 0:00:12]} Qxe2+ {[%emt 0:00:07]} 15. Bxe2 {[%emt 0:00:11]} Re8 {[%emt 0:01:02]} 16. O-O {[%emt 0:00:38]} d5 {[%emt 0:05:08]} 17. e5 {[%emt 0:02:45]} Nd7 {[%emt 0:01:47]} 18. f4 {[%emt 0:03:10]} f6 {[%emt 0:05:56]} 19. Bd6 {[%emt 0:02:11]} Kf7 {[%emt 0:05:33]} 20. h4 {[%emt 0:09:06]} Nb6 {[%emt 0:03:50]} 21. exf6 {[%emt 0:03:22]} Kxf6 {[%emt 0:01:05]} 22. Be5+ {[%emt 0:01:40]} Kf7 {[%emt 0:01:14]} 23. h5 {[%emt 0:03:03]} g6 {[%emt 0:02:20]} 24. hxg6+ {[%emt 0:03:36]} hxg6 {[%emt 0:03:40]} 25. Rf3 {[%emt 0:01:34]} Nd7 {[%emt 0:03:17]} 26. Bd6 {[%emt 0:01:38]} Kg7 {[%emt 0:01:05]} 27. Rg3 {[%emt 0:01:21]} Rh8 {[%emt 0:05:14]} 28. Bd3 {[%emt 0:02:21]} Rh6 {[%emt 0:00:47]} 29. c4 {[%emt 0:05:39]} Ba6 {[%emt 0:00:54]} 30. cxd5 {[%emt 0:05:23]} Bxd3 {[%emt 0:00:13]} 31. Rxd3 {[%emt 0:00:25]} cxd5 {[%emt 0:01:47]} 32. Rb7 {[%emt 0:00:41]} Rc8 {[%emt 0:09:28]} 33. Rxd7+ {[%emt 0:00:57]} Kg8 {[%emt 0:00:57]} 34. Be5 {[%emt 0:00:30]} Rc1+ {[%emt 0:00:28]} 35. Kf2 {[%emt 0:00:21]} Rc2+ {[%emt 0:00:23]} 36. Kg3 {[%emt 0:00:17]} Rxa2 {[%emt 0:01:06]} 37. Rg7+ {[%emt 0:00:24]} Kf8 {[%emt 0:00:15]} 38. Rc3 {[%emt 0:00:37]} 1-0

[Event "CZE-ch U10 2020"]
[Site "Kouty nad Desnou"]
[Date "2020.03.09"]
[Round "4.9"]
[White "Policar, Martin"]
[Black "Ruzicka, Oto"]
[Result "0-1"]
[ECO "C36"]
[WhiteElo "1264"]
[BlackElo "1168"]
[Annotator "NA"]
[PlyCount "54"]
[EventDate "2020.03.07"]
[EventCountry "CZE"]
[SourceTitle "playchess.com"]
[Source "ChessBase"]
[SourceQuality "1"]
[TimeControl "5400+30"]

1. e4 {[%emt 0:00:00]} e5 {[%emt 0:00:00]} 2. f4 {[%emt 0:00:00]} d5 {[%emt 0:00:02]} 3. exd5 {[%emt 0:00:33]} exf4 {[%emt 0:00:28]} 4. Nf3 {[%emt 0:02:42]} Nf6 {[%emt 0:03:06]} 5. Nc3 {[%emt 0:08:55]} Nxd5 {[%emt 0:01:30]} 6. d4 {[%emt 0:00:57]} Bg4 {[%emt 0:05:25]} 7. Bc4 {[%emt 0:05:18]} c6 {[%emt 0:03:39]} 8. O-O {[%emt 0:03:05]} Be7 {[%emt 0:04:02]} 9. Qe2 {[%emt 0:06:04]} Nxc3 {[%emt 0:05:21]} 10. bxc3 {[%emt 0:01:19]} O-O {[%emt 0:00:40]} 11. Bxf4 {[%emt 0:04:52]} Nd7 {[%emt 0:01:55]} 12. Rfe1 {[%emt 0:05:10]} Re8 {[%emt 0:02:28]} 13. Rab1 {[%emt 0:06:25]} b5 {[%emt 0:01:33]} 14. Bd3 {[%emt 0:01:57]} Nf6 {[%emt 0:01:33]} 15. Qe3 {[%emt 0:07:04]} Bd6 {[%emt 0:11:18]} 16. Ne5 {[%emt 0:01:53]} Qc7 {[%emt 0:07:59]} 17. Qg3 {[%emt 0:13:03]} Re6 {[%emt 0:09:15]} 18. Nxg4 {[%emt 0:09:40]} Bxf4 {[%emt 0:00:48]} 19. Nxf6+ {[%emt 0:01:44]} Rxf6 {[%emt 0:00:24]} 20. Qh3 {[%emt 0:03:24]} Rh6 {[%emt 0:01:31]} 21. Qf3 {[%emt 0:02:11]} Bxh2+ {[%emt 0:06:44]} 22. Kf1 {[%emt 0:03:16]} Rf6 {[%emt 0:02:28]} 23. Bf5 {[%emt 0:00:08]} g6 {[%emt 0:00:59]} 24. Rxb5 {[%emt 0:02:36]} cxb5 {[%emt 0:04:31]} 25. Qxa8+ {[%emt 0:00:32]} Kg7 {[%emt 0:00:18]} 26. Ke2 {[%emt 0:01:42]} Rxf5 {[%emt 0:00:40]} 27. Kd1 {[%emt 0:00:38]} Qxc3 {[%emt 0:00:31]} 0-1

[Event "CZE-ch U10 2020"]
[Site "Kouty nad Desnou"]
[Date "2020.03.09"]
[Round "4.10"]
[White "Stejskal, Jakub"]
[Black "Komarek, Tobias"]
[Result "0-1"]
[ECO "C45"]
[WhiteElo "1557"]
[BlackElo "1235"]
[Annotator "NA"]
[PlyCount "70"]
[EventDate "2020.03.07"]
[EventCountry "CZE"]
[SourceTitle "playchess.com"]
[Source "ChessBase"]
[SourceQuality "1"]
[TimeControl "5400+30"]

1. e4 {[%emt 0:00:00]} e5 {[%emt 0:00:00]} 2. Nf3 {[%emt 0:00:01]} Nc6 {[%emt 0:00:00]} 3. d4 {[%emt 0:01:38]} exd4 {[%emt 0:00:21]} 4. Nxd4 {[%emt 0:00:40]} Bc5 {[%emt 0:00:20]} 5. Be3 {[%emt 0:00:24]} Qf6 {[%emt 0:00:10]} 6. c3 {[%emt 0:00:23]} Nge7 {[%emt 0:00:13]} 7. Bc4 {[%emt 0:01:42]} Ne5 {[%emt 0:00:24]} 8. Be2 {[%emt 0:03:13]} d5 {[%emt 0:00:30]} 9. O-O {[%emt 0:04:44]} dxe4 {[%emt 0:00:41]} 10. f4 {[%emt 0:01:26]} exf3 {[%emt 0:00:31]} 11. Bxf3 {[%emt 0:00:27]} Nxf3+ {[%emt 0:00:47]} 12. Rxf3 {[%emt 0:00:34]} Qb6 {[%emt 0:00:22]} 13. b4 {[%emt 0:01:16]} Bxd4 {[%emt 0:01:54]} 14. Bxd4 {[%emt 0:00:34]} Qc6 {[%emt 0:00:20]} 15. Qd3 {[%emt 0:03:06]} O-O {[%emt 0:01:06]} 16. Nd2 {[%emt 0:04:09]} Be6 {[%emt 0:02:45]} 17. Ne4 {[%emt 0:01:33]} Bd5 {[%emt 0:03:01]} 18. Re1 {[%emt 0:05:09]} f5 {[%emt 0:00:33]} 19. Rg3 {[%emt 0:05:31]} Ng6 {[%emt 0:00:45]} 20. Ng5 {[%emt 0:01:44]} f4 {[%emt 0:01:08]} 21. Rg4 {[%emt 0:01:30]} Rae8 {[%emt 0:13:55]} 22. Nf3 {[%emt 0:14:05]} Rxe1+ {[%emt 0:08:56]} 23. Nxe1 {[%emt 0:02:08]} Qe6 {[%emt 0:01:06]} 24. Qd1 {[%emt 0:03:14]} Re8 {[%emt 0:03:52]} 25. Nd3 {[%emt 0:01:49]} Bc4 {[%emt 0:00:47]} 26. Rg5 {[%emt 0:03:18]} Bxd3 {[%emt 0:00:37]} 27. Qxd3 {[%emt 0:01:39]} Qe1+ {[%emt 0:00:19]} 28. Qf1 {[%emt 0:00:23]} Qh4 {[%emt 0:00:18]} 29. Qc4+ {[%emt 0:08:11]} Kh8 {[%emt 0:00:49]} 30. Rd5 {[%emt 0:04:30]} Re1+ {[%emt 0:00:34]} 31. Qf1 {[%emt 0:01:44]} Rxf1+ {[%emt 0:00:15]} 32. Kxf1 {[%emt 0:00:07]} h6 {[%emt 0:00:19]} 33. g3 {[%emt 0:02:15]} fxg3 {[%emt 0:00:14]} 34. hxg3 {[%emt 0:00:13]} Qh1+ {[%emt 0:00:14]} 35. Ke2 {[%emt 0:00:35]} Qxd5 {[%emt 0:00:17]} 0-1

[Event "CZE-ch U10 2020"]
[Site "Kouty nad Desnou"]
[Date "2020.03.09"]
[Round "4.11"]
[White "Letal, Hynek"]
[Black "Chernyy, Andrey"]
[Result "0-1"]
[ECO "C70"]
[WhiteElo "1127"]
[BlackElo "1208"]
[Annotator "NA"]
[PlyCount "66"]
[EventDate "2020.03.07"]
[EventCountry "CZE"]
[SourceTitle "playchess.com"]
[Source "ChessBase"]
[SourceQuality "1"]
[TimeControl "5400+30"]

1. e4 {[%emt 0:00:00]} e5 {[%emt 0:00:00]} 2. Nf3 {[%emt 0:00:00]} Nc6 {[%emt 0:00:00]} 3. Bb5 {[%emt 0:00:19]} a6 {[%emt 0:00:36]} 4. Ba4 {[%emt 0:00:12]} Nge7 {[%emt 0:00:14]} 5. c3 {[%emt 0:00:30]} g6 {[%emt 0:01:07]} 6. d4 {[%emt 0:00:32]} exd4 {[%emt 0:01:06]} 7. cxd4 {[%emt 0:01:14]} Bg7 {[%emt 0:00:47]} 8. d5 {[%emt 0:01:36]} Ne5 {[%emt 0:00:42]} 9. Nxe5 {[%emt 0:01:35]} Bxe5 {[%emt 0:00:36]} 10. f4 {[%emt 0:00:22]} Bg7 {[%emt 0:00:39]} 11. O-O {[%emt 0:01:12]} O-O {[%emt 0:00:42]} 12. f5 {[%emt 0:00:50]} b5 {[%emt 0:01:24]} 13. Bb3 {[%emt 0:01:11]} gxf5 {[%emt 0:01:32]} 14. exf5 {[%emt 0:00:43]} Be5 {[%emt 0:01:57]} 15. f6 {[%emt 0:00:47]} Ng6 {[%emt 0:00:40]} 16. d6 {[%emt 0:04:04]} cxd6 {[%emt 0:01:19]} 17. Bh6 {[%emt 0:01:20]} Bxb2 {[%emt 0:01:48]} 18. Bxf8 {[%emt 0:00:21]} Qxf8 {[%emt 0:00:13]} 19. Qd5 {[%emt 0:01:36]} Rb8 {[%emt 0:00:48]} 20. Nd2 {[%emt 0:00:15]} Bxa1 {[%emt 0:00:24]} 21. Rxa1 {[%emt 0:00:20]} Bb7 {[%emt 0:00:46]} 22. Qg5 {[%emt 0:00:15]} Kh8 {[%emt 0:01:24]} 23. Rc1 {[%emt 0:00:32]} Bc6 {[%emt 0:01:03]} 24. Nf3 {[%emt 0:01:33]} Re8 {[%emt 0:05:33]} 25. Qh5 {[%emt 0:00:49]} Bxf3 {[%emt 0:01:43]} 26. Qxf3 {[%emt 0:00:36]} Ne5 {[%emt 0:00:22]} 27. Qf5 {[%emt 0:01:17]} Qh6 {[%emt 0:03:08]} 28. Rf1 {[%emt 0:02:37]} Rg8 {[%emt 0:04:22]} 29. Rd1 {[%emt 0:04:00]} Ng4 {[%emt 0:02:05]} 30. Qd3 {[%emt 0:04:03]} Qxh2+ {[%emt 0:01:45]} 31. Kf1 {[%emt 0:01:01]} Qh1+ {[%emt 0:00:27]} 32. Ke2 {[%emt 0:00:08]} Qxg2+ {[%emt 0:00:27]} 33. Ke1 {[%emt 0:00:02]} Qf2# {[%emt 0:00:02] Qd4} 0-1